bitfinex/quotes_ETHUSD_20250824
["timestamp","ask_amount","ask_price","bid_price","bid_amount"]
[1756053348388,0.02,4826.8,4826.6,11.45953999]
[1756053348571,0.02,4826.8,4826.6,11.75255339]
[1756053348767,0.02,4826.8,4826.6,12.41255339]
[1756053348972,0.02,4826.8,4826.6,27.64222946]
[1756053349374,0.02,4826.8,4826.6,7.71215339]
[1756053349577,0.02,4826.8,4826.6,11.31315339]
[1756053350280,0.02,4826.8,4826.6,9.24130157]
[1756053350475,0.02,4826.8,4826.6,5.93320157]
[1756053350659,0.02,4826.8,4826.6,5.74338817]
[1756053350880,0.2068,4826.7,4826.6,5.74338817]
[1756053351599,0.002,4826.7,4826.6,5.74338817]
[1756053352164,0.002,4826.7,4826.6,7.81523999]
[1756053352368,0.002,4826.7,4826.6,8.29454397]
[1756053352788,0.002,4826.7,4826.6,5.74338817]
[1756053353575,0.002,4826.7,4826.6,5.933512]
[1756053354098,0.002,4826.7,4826.6,8.00536382]
[1756053354410,0.002,4826.7,4826.6,5.933512]
[1756053355261,0.002,4826.7,4826.6,8.00536382]
[1756053355468,0.002,4826.7,4826.6,5.933512]
[1756053356572,0.002,4826.7,4826.6,7.81523999]
[1756053356792,0.002,4826.7,4826.6,5.74338817]
[1756053357392,0.2068,4826.7,4826.6,5.74338817]
[1756053357600,0.6664,4826.7,4826.6,1.6972]
[1756053357767,0.6664,4826.7,4826.6,5.2902]
[1756053361518,0.002,4826.7,4826.6,5.5795]
[1756053361673,0.002,4826.7,4826.6,8.12095182]
[1756053361873,0.002,4826.7,4826.6,9.14024019]
[1756053362973,0.002,4826.7,4826.6,5.07764019]
[1756053363173,0.002,4826.7,4826.6,9.03504019]
[1756053363433,0.002,4826.7,4826.6,9.13824019]
[1756053363576,0.002,4826.7,4826.6,12.13824019]
[1756053365501,0.002,4826.7,4826.6,11.66864019]
[1756053366902,0.002,4826.7,4826.6,2.71648837]
[1756053367203,0.7698,4826.7,4826.6,5.2852]
[1756053367590,0.7698,4826.7,4826.6,7.35705182]
[1756053367796,0.2988,4826.7,4826.6,7.35705182]
[1756053368001,0.2988,4826.7,4826.6,1.6972]
[1756053368207,0.2988,4826.7,4826.6,5.2852]
[1756053369180,0.2988,4826.7,4826.6,1.6972]
[1756053369387,0.2988,4826.7,4826.6,7.35405182]
[1756053370193,0.2988,4826.7,4826.6,5.2822]
[1756053370392,0.7698,4826.7,4826.6,5.2822]
[1756053371113,0.7698,4826.7,4826.6,1.6972]
[1756053371323,1.21664002,4826.7,4826.6,5.2802]
[1756053371485,0.7698,4826.7,4826.6,5.2802]
[1756053371684,0.2988,4826.7,4826.6,7.35205182]
[1756053371880,0.002,4826.7,4826.6,7.35205182]
[1756053372584,0.2988,4826.7,4826.6,5.2802]
[1756053373118,0.7698,4826.7,4826.6,5.2802]
[1756053374414,0.2988,4826.7,4826.6,5.2802]
[1756053374714,0.2988,4826.7,4826.6,7.35205182]
[1756053375289,0.002,4826.7,4826.6,7.35205182]
[1756053375685,0.002,4826.7,4826.6,8.58375028]
[1756053380488,0.002,4826.7,4826.6,1.6972]
[1756053380489,0.2988,4826.7,4826.6,1.6972]
[1756053380688,0.7698,4826.7,4826.6,5.166]
[1756053381020,0.002,4826.7,4826.6,5.166]
[1756053381386,0.2988,4826.7,4826.6,5.166]
[1756053381986,0.7708,4826.7,4826.6,5.166]
[1756053383124,0.7708,4826.7,4826.6,1.594]
[1756053383325,0.2988,4826.7,4826.6,5.167]
[1756053383631,0.002,4826.7,4826.6,7.45797782]
[1756053383793,0.002,4826.7,4826.6,8.41096783]
[1756053384996,0.002,4826.7,4826.6,6.34011601]
[1756053385198,0.002,4826.7,4826.6,6.02501601]
[1756053386297,0.002,4826.7,4826.6,8.09686783]
[1756053386497,0.002,4826.7,4826.6,8.41196783]
[1756053386781,0.002,4826.7,4826.6,8.84756783]
[1756053387196,0.002,4826.7,4826.6,8.41196783]
[1756053387598,0.3031,4826.7,4826.6,6.02401601]
[1756053387930,0.3031,4826.7,4826.6,5.071026]
[1756053388301,0.3031,4826.7,4826.6,7.14287782]
[1756053388610,0.002,4826.7,4826.6,7.14287782]
[1756053389415,0.002,4826.7,4826.6,7.45797782]
[1756053390704,0.002,4826.7,4826.6,7.56117782]
[1756053392018,0.002,4826.7,4826.6,3.98817782]
[1756053392216,0.002,4826.7,4826.6,7.55417782]
[1756053392632,0.002,4826.7,4826.6,7.23807782]
[1756053393126,0.002,4826.7,4826.6,8.9633391]
[1756053393506,0.002,4826.7,4826.6,11.9633391]
[1756053396145,0.002,4826.7,4826.6,12.27471763]
[1756053396450,0.002,4826.7,4826.6,11.9633391]
[1756053397143,0.002,4826.7,4826.6,14.1513391]
[1756053398059,0.002,4826.7,4826.6,14.1483391]
[1756053398545,0.002,4826.7,4826.6,14.8083391]
[1756053398942,1e-08,4826.8,4826.7,5.73180889]
[1756053399149,1e-08,4826.8,4826.7,9.5043196]
[1756053400578,0.002,4827.4,4827.0,2.848]
[1756053400741,0.012,4828.4,4827.6,2.07142265]
[1756053400937,0.012,4828.4,4827.6,6.76662265]
[1756053401260,0.012,4828.4,4827.6,10.63972265]
[1756053401425,0.012,4828.4,4827.6,11.83275489]
[1756053402059,0.012,4828.4,4827.6,8.27475489]
[1756053402261,0.472,4828.3,4827.6,11.83175489]
[1756053402754,0.012,4828.4,4827.6,12.26735489]
[1756053404259,0.012,4828.4,4827.6,11.83175489]
[1756053404561,0.012,4828.4,4827.6,12.26735489]
[1756053404862,0.012,4828.4,4827.6,8.71035489]
[1756053405160,0.012,4828.4,4827.6,12.26335489]
[1756053405325,0.012,4828.4,4827.6,19.11941306]
[1756053405526,0.012,4828.4,4827.6,18.68381306]
[1756053407269,0.012,4828.4,4827.6,15.13081306]
[1756053407644,0.012,4828.4,4827.6,18.68081306]
[1756053407847,0.3031,4827.7,4827.6,11.50965489]
[1756053408524,0.3031,4827.7,4827.6,7.95965489]
[1756053408866,0.3031,4827.7,4827.6,11.98165489]
[1756053410858,0.002,4827.7,4827.6,11.98165489]
[1756053411339,0.002,4827.7,4827.6,8.35805489]
[1756053411530,0.7751,4827.7,4827.6,7.71202265]
[1756053411725,0.7751,4827.7,4827.6,7.71102265]
[1756053413367,0.7751,4827.7,4827.6,4.16502265]
[1756053413836,0.7751,4827.7,4827.6,7.71102265]
[1756053415958,0.002,4827.7,4827.6,11.46882265]
[1756053416161,0.002,4827.7,4827.6,13.61070065]
[1756053417245,0.002,4827.7,4827.6,13.14310065]
[1756053417637,0.002,4827.7,4827.6,13.14110065]
[1756053418037,0.002,4827.7,4827.6,13.60870065]
[1756053419298,0.002,4827.7,4827.6,13.14110065]
[1756053420936,0.002,4827.7,4827.6,9.59710065]
[1756053421170,0.7711,4827.7,4827.6,5.1672]
[1756053421341,0.7711,4827.7,4827.6,7.77762265]
[1756053421539,0.7711,4827.7,4827.6,0.5752]
[1756053421743,0.7711,4827.7,4827.6,4.1192]
[1756053422027,0.7711,4827.7,4827.6,0.1032]
[1756053422153,0.7711,4827.7,4827.6,3.6472]
[1756053422540,0.7711,4827.7,4827.6,3.6462]
[1756053423038,0.7711,4827.7,4827.6,0.1032]
[1756053423241,0.7711,4827.7,4827.6,3.6452]
[1756053424673,0.002,4827.7,4827.6,5.71662265]
[1756053424880,0.002,4827.7,4827.6,6.94483394]
[1756053425857,0.002,4827.7,4827.6,10.41243394]
[1756053426056,0.002,4827.7,4827.6,10.72379309]
[1756053428782,0.002,4827.7,4827.6,10.41143394]
[1756053430481,0.3039,4827.7,4827.6,6.11263394]
[1756053430685,0.002,4827.7,4827.6,6.40283394]
[1756053430985,0.002,4827.7,4827.6,9.94183394]
[1756053431387,0.002,4827.7,4827.6,10.40943394]
[1756053431547,0.002,4828.2,4828.1,2.07120813]
[1756053431747,0.002,4828.2,4828.1,24.76793665]
[1756053431950,0.002,4828.2,4828.1,26.3100958]
[1756053432184,0.002,4828.2,4828.1,26.3930608]
[1756053432480,0.012,4828.4,4828.1,26.6810438]
[1756053432684,1e-08,4828.7,4828.4,2.07106131]
[1756053432870,1e-08,4828.7,4828.6,4.0534]
[1756053433070,1e-08,4828.7,4828.6,6.12439366]
[1756053433270,1e-08,4828.7,4828.6,6.59199366]
[1756053434482,1e-08,4828.7,4828.6,9.66239366]
[1756053434791,1e-08,4828.7,4828.6,11.47913818]
[1756053434990,1e-08,4828.7,4828.6,11.56209018]
[1756053435759,1e-08,4828.7,4828.6,8.02409018]
[1756053435998,1e-08,4828.7,4828.6,11.56209018]
[1756053436354,1e-08,4828.7,4828.6,8.02409018]
[1756053436558,1e-08,4828.7,4828.6,11.56009018]
[1756053436976,1e-08,4828.7,4828.6,11.09249018]
[1756053438169,1e-08,4828.7,4828.6,11.56009018]
[1756053438614,1e-08,4828.8,4828.7,5.73095077]
[1756053438934,1e-08,4828.8,4828.7,23.16021765]
[1756053439276,1e-08,4828.8,4828.7,22.95097716]
[1756053440198,1e-08,4828.8,4828.7,26.48397716]
[1756053440398,1e-08,4828.8,4828.7,26.19599416]
[1756053441114,1e-08,4828.8,4828.7,22.66299416]
[1756053441329,1e-08,4828.8,4828.7,26.19599416]
[1756053441634,1e-08,4828.8,4828.7,28.38399416]
[1756053441915,1e-08,4828.8,4828.7,28.38299416]
[1756053442912,0.002,4829.6,4829.1,4.25877923]
[1756053443209,0.002,4829.6,4829.1,12.58002765]
[1756053443210,1e-08,4829.2,4829.1,12.58002765]
[1756053443439,1e-08,4829.2,4829.1,18.00102765]
[1756053443734,1e-08,4829.2,4829.1,18.08397465]
[1756053443939,1e-08,4829.3,4829.2,7.91873635]
[1756053444091,1e-08,4829.3,4829.2,8.67753635]
[1756053444292,1e-08,4829.3,4829.2,10.81941435]
[1756053444742,1e-08,4829.3,4829.2,10.90235635]
[1756053445038,1e-08,4829.3,4829.2,13.98535635]
[1756053445746,1e-08,4829.3,4829.2,10.45635635]
[1756053445892,1e-08,4829.3,4829.2,13.98535635]
[1756053447409,1e-08,4829.3,4829.2,20.8360578]
[1756053447823,1e-08,4829.3,4829.2,20.8340578]
[1756053449207,0.28960001,4829.3,4829.2,19.8592578]
[1756053449835,0.71860001,4829.3,4829.2,19.8592578]
[1756053450005,0.28960001,4829.3,4829.2,19.8592578]
[1756053450210,1e-08,4829.3,4829.2,19.8592578]
[1756053451440,1e-08,4829.3,4829.2,13.00855635]
[1756053451738,0.28960001,4829.3,4829.2,19.8592578]
[1756053452291,0.28960001,4829.3,4829.2,9.48355635]
[1756053452507,0.71860001,4829.3,4829.2,2.15367835]
[1756053452711,0.71860001,4829.3,4829.2,5.67867835]
[1756053452932,0.71860001,4829.3,4829.2,8.67867835]
[1756053453133,1e-08,4829.3,4829.2,15.9453798]
[1756053453338,1e-08,4829.3,4829.2,18.7472578]
[1756053453496,1e-08,4829.3,4829.2,21.3812578]
[1756053453896,1e-08,4829.3,4829.2,20.9352578]
[1756053454100,1e-08,4829.3,4829.2,20.9372578]
[1756053454514,1e-08,4829.3,4829.2,17.8562578]
[1756053454710,1e-08,4829.3,4829.2,17.4102578]
[1756053454933,1e-08,4829.3,4829.2,20.9362578]
[1756053455322,1e-08,4829.3,4829.2,21.3822578]
[1756053455634,0.002,4829.6,4829.2,21.3822578]
[1756053455635,1e-08,4829.6,4829.5,4.25860772]
[1756053455824,1e-08,4829.6,4829.5,14.85500066]
[1756053456329,1e-08,4829.6,4829.5,14.93794366]
[1756053457146,1e-08,4829.8,4829.7,14.76922342]
[1756053457327,1e-08,4829.8,4829.7,18.60802342]
[1756053457524,1e-08,4829.8,4829.7,19.99203471]
[1756053459330,1e-08,4829.8,4829.7,19.64942943]
[1756053460424,1e-08,4829.8,4829.7,20.07842943]
[1756053461435,1e-08,4829.8,4829.7,19.97503471]
[1756053462506,1e-08,4829.8,4829.7,16.44903471]
[1756053462713,1e-08,4829.8,4829.7,19.97303471]
[1756053465113,1e-08,4829.8,4829.7,19.66023471]
[1756053465311,0.28960001,4829.8,4829.7,19.66023471]
[1756053465550,0.28960001,4829.8,4829.7,19.65923471]
[1756053465850,1e-08,4829.8,4829.7,19.65923471]
[1756053466429,1e-08,4829.8,4829.7,13.28823471]
[1756053466612,0.42900001,4829.8,4829.7,6.02252197]
[1756053467061,0.42900001,4829.8,4829.7,5.49952197]
[1756053467257,0.42900001,4829.8,4829.7,8.59352197]
[1756053467460,0.42900001,4829.8,4829.7,5.07052197]
[1756053467628,0.42900001,4829.8,4829.7,3.66152197]
[1756053467831,0.27900001,4829.8,4829.7,7.18452197]
[1756053468053,0.40570001,4829.8,4829.7,7.18452197]
[1756053468240,0.40570001,4829.8,4829.7,10.18452197]
[1756053468438,0.1267,4829.8,4829.7,10.18452197]
[1756053468626,0.1267,4829.8,4829.7,10.59022197]
[1756053469628,0.1267,4829.8,4829.7,10.18452197]
[1756053470021,0.2557,4829.8,4829.7,10.31122197]
[1756053470358,0.2557,4829.8,4829.7,5.114]
[1756053471734,0.2557,4829.8,4829.7,1.591]
[1756053471919,0.2557,4829.8,4829.5,0.1032]
[1756053472132,0.129,4829.7,4829.6,3.523]
[1756053472451,0.2558,4829.7,4829.6,3.523]
[1756053473149,0.2558,4829.7,4829.5,0.1032]
[1756053473348,0.1268,4829.7,4829.6,3.524]
[1756053473852,0.1268,4829.7,4829.5,0.1032]
[1756053474150,0.2558,4829.7,4829.6,3.523]
[1756053474357,0.2558,4829.7,4829.5,0.1032]
[1756053474525,0.129,4829.6,4829.5,0.1032]
[1756053474722,0.2558,4829.6,4829.5,0.1032]
[1756053475120,0.2558,4829.6,4829.5,3.6262]
[1756053476541,0.2558,4829.6,4829.5,3.6272]
[1756053477353,0.2558,4829.6,4829.5,0.1032]
[1756053477849,0.2558,4829.6,4829.5,3.6272]
[1756053478018,0.2558,4829.6,4829.5,0.1032]
[1756053478222,0.58158,4829.6,4829.4,3.524]
[1756053478422,0.1289,4829.5,4829.4,3.524]
[1756053478649,0.2557,4829.5,4829.4,3.524]
[1756053479354,0.2557,4829.5,4829.2,0.1032]
[1756053479657,0.002,4829.8,4829.7,2.07052197]
[1756053479860,0.002,4829.8,4829.7,5.59452197]
[1756053480070,0.002,4829.8,4829.7,7.20260113]
[1756053480218,0.002,4829.8,4829.7,7.49560113]
[1756053480634,0.002,4829.8,4829.7,7.79200113]
[1756053480839,0.002,4829.8,4829.7,8.22180113]
[1756053483187,0.002,4829.8,4829.7,7.80200113]
[1756053485372,0.2979,4829.8,4829.7,1.90447916]
[1756053485673,0.6933,4829.8,4829.7,5.2282]
[1756053485973,0.2979,4829.8,4829.7,5.2282]
[1756053486951,0.2979,4829.8,4829.7,7.29872197]
[1756053487375,0.002,4829.8,4829.7,7.59172197]
[1756053487767,0.002,4829.8,4829.7,8.02152197]
[1756053487963,0.2979,4829.8,4829.7,8.30793439]
[1756053488167,0.2979,4829.8,4829.7,7.29872197]
[1756053488473,0.002,4829.8,4829.7,7.29872197]
[1756053489874,0.002,4829.8,4829.7,7.59172197]
[1756053490973,0.6941,4829.8,4829.7,1.6952]
[1756053491173,0.6941,4829.8,4829.7,5.2262]
[1756053491561,0.242,4829.8,4829.7,5.2262]
[1756053493173,0.002,4829.8,4829.7,7.48652197]
[1756053493351,0.002,4829.8,4829.7,6.6977522]
[1756053493553,0.0073,4829.8,4829.7,5.2262]
[1756053493748,0.0073,4829.8,4829.7,1.6952]
[1756053493949,0.0073,4829.8,4829.7,7.30072197]
[1756053494182,0.002,4829.8,4829.7,7.30072197]
[1756053494368,0.002,4829.8,4829.7,1.6952]
[1756053494665,0.002,4829.8,4829.7,5.2292]
[1756053494871,0.002,4829.8,4829.7,7.29972197]
[1756053495272,0.0073,4829.8,4829.7,0.1032]
[1756053495487,0.0073,4829.8,4829.6,0.001]
[1756053495654,0.0073,4829.8,4829.7,3.537]
[1756053497502,0.0073,4829.8,4829.6,0.001]
[1756053497669,0.0073,4829.8,4829.7,3.537]
[1756053497865,0.6673,4829.8,4829.7,3.537]
[1756053498187,0.85556,4829.8,4829.7,3.537]
[1756053498364,1.09546,4829.8,4829.7,3.537]
[1756053501201,1.09546,4829.8,4829.6,0.001]
[1756053501368,0.85556,4829.8,4829.7,3.534]
[1756053501691,0.85556,4829.8,4829.7,3.9302]
[1756053501692,0.002,4829.8,4829.7,3.9302]
[1756053502508,0.002,4829.8,4829.7,4.3781]
[1756053503062,0.002,4829.8,4829.7,6.44862197]
[1756053505525,0.002,4829.8,4829.7,2.91462197]
[1756053505659,0.002,4829.8,4829.7,6.44862197]
[1756053505861,0.002,4829.8,4829.7,7.30064405]
[1756053506776,0.002,4829.8,4829.7,6.84484405]
[1756053506976,0.002,4829.8,4829.7,7.29274405]
[1756053508974,0.002,4829.8,4829.7,7.29074405]
[1756053509894,0.002,4829.8,4829.7,7.28974405]
[1756053512973,0.002,4829.8,4829.7,10.28974405]
[1756053516714,0.002,4829.8,4829.7,10.37269005]
[1756053517016,0.002,4829.8,4829.7,10.28974405]
[1756053517520,0.002,4830.3,4830.2,2.07030764]
[1756053517705,0.002,4830.3,4830.2,17.32510909]
[1756053517911,0.002,4830.3,4830.2,17.87620909]
[1756053518495,0.002,4830.3,4830.2,17.95914309]
[1756053520185,0.002,4830.3,4830.2,4.13454164]
[1756053520390,0.002,4830.3,4830.2,8.11248532]
[1756053522120,0.002,4830.3,4830.2,8.11148532]
[1756053523305,0.002,4830.3,4830.2,8.55938532]
[1756053523501,0.002,4830.3,4830.2,18.41008677]
[1756053527598,0.002,4830.3,4830.2,18.87428677]
[1756053527799,0.002,4830.3,4830.2,18.41008677]
[1756053529626,0.2519,4830.3,4830.2,10.82538532]
[1756053530312,0.002,4830.3,4830.2,10.82538532]
[1756053531039,0.002,4830.3,4830.2,7.30138532]
[1756053531241,0.002,4830.3,4830.2,10.82538532]
[1756053531242,0.2538,4830.3,4830.2,10.82538532]
[1756053531410,0.2538,4830.3,4830.2,7.30138532]
[1756053531736,0.2538,4830.3,4830.2,10.82538532]
[1756053532230,0.002,4830.3,4830.2,7.30138532]
[1756053532430,0.2538,4830.3,4830.2,10.82538532]
[1756053532921,0.002,4830.3,4830.2,10.82538532]
[1756053534505,0.002,4830.3,4830.2,7.30138532]
[1756053534712,0.002,4830.3,4830.2,10.82538532]
[1756053535205,0.2519,4830.3,4830.2,10.82538532]
[1756053536728,0.002,4830.3,4830.2,10.82538532]
[1756053537405,0.002,4830.3,4830.2,11.12678532]
[1756053537633,0.002,4830.3,4830.2,7.60278532]
[1756053537839,0.002,4830.3,4830.2,11.12678532]
[1756053538905,0.002,4830.3,4830.2,11.60068532]
[1756053540641,0.002,4830.3,4830.2,11.12678532]
[1756053541712,0.002,4830.3,4830.2,7.60278532]
[1756053542368,0.002,4830.3,4830.2,11.12678532]
[1756053543857,0.002,4830.3,4830.2,7.60278532]
[1756053544061,0.002,4830.3,4830.2,11.12678532]
[1756053544440,0.002,4830.3,4830.2,11.60068532]
[1756053545346,0.002,4830.3,4830.2,7.60278532]
[1756053545551,0.002,4830.3,4830.2,11.12678532]
[1756053545946,0.002,4830.3,4830.2,11.60068532]
[1756053546750,0.002,4830.3,4830.2,11.59968532]
[1756053549342,0.002,4830.3,4830.2,11.12578532]
[1756053549665,0.002,4830.3,4830.2,10.82438532]
[1756053550468,0.694,4830.3,4830.2,4.30138532]
[1756053550687,0.694,4830.3,4830.2,7.28850764]
[1756053551188,0.2318,4830.3,4830.2,7.28850764]
[1756053551347,0.002,4830.3,4830.2,8.06380764]
[1756053551745,0.002,4830.3,4830.2,11.06380764]
[1756053552057,0.002,4830.3,4830.2,11.35914806]
[1756053552242,0.002,4830.3,4830.2,13.50102606]
[1756053552447,0.002,4830.3,4830.2,13.20568564]
[1756053556601,1e-08,4830.3,4830.2,13.20568564]
[1756053558081,1e-08,4830.3,4830.2,9.68268564]
[1756053558281,1e-08,4830.3,4830.2,13.20568564]
[1756053558692,1e-08,4830.3,4830.2,20.05638709]
[1756053560269,1e-08,4830.3,4830.2,19.58248709]
[1756053560462,1e-08,4830.3,4830.2,15.75808709]
[1756053560663,0.22980001,4830.3,4830.2,12.42938564]
[1756053560885,0.22980001,4830.3,4830.2,9.42938564]
[1756053561061,0.22980001,4830.3,4830.2,12.42938564]
[1756053562582,0.22980001,4830.3,4830.2,8.90738564]
[1756053562993,0.22980001,4830.3,4830.2,12.42938564]
[1756053565186,1e-08,4830.3,4830.2,12.73448564]
[1756053565386,1e-08,4830.3,4830.2,13.20888564]
[1756053568403,1e-08,4830.3,4830.2,20.05958709]
[1756053569810,1e-08,4830.3,4830.2,23.20292751]
[1756053570020,0.002,4831.3,4830.8,2.188]
[1756053570181,0.002,4831.3,4831.2,9.22568056]
[1756053570384,0.002,4831.3,4831.2,17.44188056]
[1756053571374,0.002,4831.3,4831.2,17.13678056]
[1756053571375,0.0067,4831.3,4831.2,17.13678056]
[1756053572201,0.0067,4831.3,4831.2,13.61478056]
[1756053572526,0.0067,4831.3,4831.2,18.74783389]
[1756053573114,0.002,4831.3,4831.2,18.74783389]
[1756053573488,0.2261,4831.3,4831.2,3.76407911]
[1756053573804,0.2261,4831.3,4831.2,7.28507911]
[1756053573805,0.6892,4831.3,4831.2,7.28507911]
[1756053575477,0.6892,4831.3,4831.2,1.6942]
[1756053575808,0.6892,4831.3,4831.2,5.2152]
[1756053578087,0.6892,4831.3,4831.2,1.6942]
[1756053578291,0.6892,4831.3,4831.2,5.2152]
[1756053578805,0.6892,4831.3,4831.2,5.112]
[1756053578986,1.74319015,4831.3,4831.2,5.112]
[1756053579181,0.6892,4831.3,4831.2,5.112]
[1756053579383,0.6892,4831.3,4830.9,0.1032]
[1756053579583,0.4703,4831.2,4831.0,3.521]
[1756053579808,0.4703,4831.2,4831.1,3.521]
[1756053580415,0.2935,4831.2,4831.1,3.521]
[1756053580793,0.2935,4831.2,4831.1,5.59092196]
[1756053581001,0.002,4831.3,4831.1,6.1520194]
[1756053581196,0.002,4831.3,4831.2,2.06987911]
[1756053581499,0.002,4831.3,4831.2,9.80328056]
[1756053581694,0.002,4831.3,4831.2,12.80328056]
[1756053584919,0.002,4831.3,4831.2,16.32428056]
[1756053585124,0.002,4831.3,4831.2,18.18930056]
[1756053586092,0.002,4831.3,4831.2,14.66830056]
[1756053586303,0.002,4831.3,4831.2,18.18830056]
[1756053590934,0.002,4831.3,4831.2,18.08510056]
[1756053595039,0.002,4831.3,4831.2,17.30460056]
[1756053595520,0.002,4831.3,4831.2,18.08790056]
[1756053596162,0.2261,4831.3,4831.2,10.45389911]
[1756053596313,0.2261,4831.3,4831.2,18.89560056]
[1756053596514,0.002,4831.3,4831.2,18.89560056]
[1756053598148,0.002,4831.3,4831.2,19.20750056]
[1756053599314,0.002,4831.3,4831.2,19.67090056]
[1756053599514,0.002,4831.3,4831.2,20.14230056]
[1756053601043,0.002,4831.3,4831.2,20.24550056]
[1756053601419,0.002,4831.3,4831.2,19.77410056]
[1756053601617,0.002,4831.3,4831.2,20.24550056]
[1756053603840,0.02,4831.8,4831.2,20.24550056]
[1756053603841,0.02,4831.8,4831.7,2.06966492]
[1756053604118,0.02,4831.8,4831.7,12.43936637]
[1756053604326,0.3077,4831.8,4831.7,14.19945971]
[1756053604854,0.3077,4831.8,4831.7,12.54156637]
[1756053606049,0.3077,4831.8,4831.7,2.17286492]
[1756053606250,0.3077,4831.8,4831.7,5.69086492]
[1756053606445,0.7125,4831.8,4831.7,5.69086492]
[1756053608069,0.3077,4831.8,4831.7,5.69086492]
[1756053608560,0.02,4831.8,4831.7,7.46389463]
[1756053608764,0.3077,4831.8,4831.7,3.63399463]
[1756053608947,0.3077,4831.8,4831.7,5.69086492]
[1756053610277,0.02,4831.8,4831.7,6.00276492]
[1756053610569,0.02,4831.8,4831.7,6.47416492]
[1756053610736,0.02,4831.8,4831.7,6.00276492]
[1756053610941,0.02,4831.8,4831.7,5.69086492]
[1756053611857,0.02,4831.8,4831.7,6.00276492]
[1756053612568,0.02,4831.8,4831.7,6.80249446]
[1756053613073,0.02,4831.8,4831.7,6.33109446]
[1756053614671,0.02,4831.8,4831.7,6.01919446]
[1756053615077,0.02,4831.8,4831.7,2.50119446]
[1756053615376,0.02,4831.8,4831.7,6.01819446]
[1756053616585,0.02,4831.8,4831.7,6.33009446]
[1756053617564,0.3077,4831.8,4831.7,2.50119446]
[1756053617766,0.3077,4831.8,4831.7,6.01819446]
[1756053618483,0.3077,4831.8,4831.7,0.1032]
[1756053618820,0.3077,4831.8,4831.7,5.68986492]
[1756053619019,0.02,4831.8,4831.7,5.58666492]
[1756053619563,0.02,4831.8,4831.7,5.89856492]
[1756053619903,0.02,4831.8,4831.7,6.36996492]
[1756053620118,0.02,4831.8,4831.7,10.97512015]
[1756053620889,0.02,4831.8,4831.7,11.05803515]
[1756053622140,0.002,4832.3,4832.2,2.06945076]
[1756053622426,0.002,4832.3,4832.2,17.33735221]
[1756053622824,0.002,4832.3,4832.2,17.76975221]
[1756053622993,0.002,4832.3,4832.2,19.91163021]
[1756053623194,0.002,4832.3,4832.2,20.40173021]
[1756053625522,0.002,4832.3,4832.2,16.88573021]
[1756053625881,0.002,4832.3,4832.2,20.40173021]
[1756053628382,0.002,4832.3,4832.2,16.88573021]
[1756053628682,0.4701,4833.5,4833.4,2.06893698]
[1756053628913,0.6938,4833.5,4833.4,7.17493698]
[1756053629235,0.2237,4833.5,4833.4,7.27813698]
[1756053629383,0.2237,4833.5,4833.4,14.12883843]
[1756053629728,0.02,4833.8,4833.7,2.06880857]
[1756053629936,0.2461,4833.8,4833.7,5.58380857]
[1756053630228,0.2461,4833.8,4833.7,5.68700857]
[1756053630429,0.7113,4833.8,4833.7,2.17200857]
[1756053630578,0.7113,4833.8,4833.7,5.68700857]
[1756053630782,0.7113,4833.8,4833.7,2.17200857]
[1756053631033,0.2461,4833.8,4833.7,5.68700857]
[1756053631846,0.7113,4833.8,4833.7,5.68700857]
[1756053632251,0.7113,4833.8,4833.7,5.68600857]
[1756053632723,0.7113,4833.8,4833.7,3.6172]
[1756053634031,0.7113,4833.8,4833.7,5.68600857]
[1756053634241,0.7113,4833.8,4833.7,3.6172]
[1756053634443,0.7113,4833.8,4833.7,5.68600857]
[1756053635181,0.7162,4833.8,4833.7,0.1032]
[1756053635825,0.7162,4833.8,4833.7,3.6172]
[1756053636729,0.7162,4833.8,4833.7,0.1032]
[1756053636932,0.7162,4833.8,4833.7,3.6172]
[1756053637238,0.7162,4833.8,4833.7,0.1032]
[1756053637769,0.7162,4833.8,4833.7,3.6172]
[1756053638068,0.7162,4833.8,4833.7,0.1032]
[1756053638252,0.7162,4833.8,4833.7,3.514]
[1756053638451,0.7162,4833.8,4833.4,1.6942]
[1756053638661,1.1301,4833.7,4833.4,1.591]
[1756053638972,0.8892,4833.5,4833.4,3.513]
[1756053639172,0.2292,4833.5,4833.4,3.513]
[1756053640637,0.2292,4833.5,4833.4,5.58193698]
[1756053640833,0.02,4833.8,4833.5,2.0688633]
[1756053641039,0.02,4833.8,4833.6,1.591]
[1756053641281,0.02,4833.8,4833.7,5.99520857]
[1756053642187,0.02,4833.8,4833.7,6.42760857]
[1756053643445,0.02,4833.8,4833.7,3.6162]
[1756053644000,0.02,4833.8,4833.7,5.68500857]
[1756053644287,0.3064,4833.8,4833.7,0.1032]
[1756053644439,0.3064,4833.8,4833.7,3.6162]
[1756053644982,0.3064,4833.8,4833.7,5.68500857]
[1756053645143,0.3064,4833.8,4833.7,3.6162]
[1756053646913,0.02,4833.8,4833.7,3.6162]
[1756053647566,0.3053,4833.8,4833.7,3.6162]
[1756053647766,0.3053,4833.8,4833.7,3.6152]
[1756053648187,0.3053,4833.8,4833.7,0.1032]
[1756053648365,0.3053,4833.8,4833.7,3.6152]
[1756053648559,0.02,4833.8,4833.7,3.6152]
[1756053649065,0.02,4833.8,4833.7,3.9254]
[1756053649265,0.002,4834.5,4834.4,8.91921046]
[1756053649516,0.002,4834.5,4834.4,12.74141046]
[1756053649678,0.002,4834.5,4834.4,16.17381046]
[1756053650014,0.002,4834.5,4834.4,18.31568846]
[1756053650228,0.002,4834.5,4834.4,18.39855346]
[1756053651585,0.002,4834.5,4834.4,18.31568846]